bitfinex-derivatives/quotes_BTCF0:USTF0_20250629
["timestamp","ask_amount","ask_price","bid_price","bid_amount"]
[1751201985709,0.001,108230.0,108220.0,1.71844634]
[1751201986308,0.001,108230.0,108220.0,0.99684634]
[1751201986507,0.001,108230.0,108220.0,1.71844634]
[1751201988009,0.001,108230.0,108220.0,1.84765515]
[1751201988999,0.001,108230.0,108220.0,1.94000544]
[1751201989200,0.001,108230.0,108220.0,1.81079663]
[1751201991112,0.001,108230.0,108220.0,1.7941959]
[1751201993013,0.001,108230.0,108220.0,1.0725959]
[1751201993212,0.001,108230.0,108220.0,1.7941959]
[1751201996114,0.001,108230.0,108220.0,1.83105442]
[1751201999320,0.001,108230.0,108220.0,1.10945442]
[1751201999521,0.001,108230.0,108220.0,1.83105442]
[1751202004218,0.0315,108230.0,108220.0,1.83105442]
[1751202004512,0.0315,108230.0,108220.0,1.27365442]
[1751202004718,0.0315,108230.0,108220.0,1.83057442]
[1751202006629,0.0315,108230.0,108220.0,1.83029442]
[1751202018129,0.001,108230.0,108220.0,1.93029442]
[1751202018830,0.001,108230.0,108220.0,1.80108561]
[1751202019027,0.001,108230.0,108220.0,1.93036724]
[1751202019430,0.001,108230.0,108220.0,1.80108561]
[1751202019640,0.00157416,108240.0,108230.0,0.1847306]
[1751202019831,0.00157416,108240.0,108230.0,1.33725194]
[1751202020135,0.00157416,108240.0,108230.0,1.24492564]
[1751202020933,0.00257416,108240.0,108230.0,1.24492564]
[1751202021327,0.00557416,108240.0,108230.0,1.24492564]
[1751202023934,0.00557416,108240.0,108230.0,1.26130746]
[1751202024138,0.00557416,108240.0,108230.0,1.35369901]
[1751202024937,0.00557416,108240.0,108230.0,1.63509149]
[1751202027338,0.00557416,108240.0,108230.0,1.50583466]
[1751202027538,0.00557416,108240.0,108230.0,1.5979701]
[1751202028343,0.00557416,108240.0,108230.0,1.50583466]
[1751202029540,6e-08,108240.0,108230.0,1.50583466]
[1751202030240,6e-08,108240.0,108230.0,1.5979701]
[1751202031040,6e-08,108240.0,108230.0,1.63509149]
[1751202033237,6e-08,108240.0,108230.0,1.53509149]
[1751202034646,6e-08,108240.0,108230.0,2.12685994]
[1751202035144,6e-08,108240.0,108230.0,2.17304994]
[1751202037938,6e-08,108240.0,108230.0,1.48888994]
[1751202038143,6e-08,108240.0,108230.0,2.27308994]
[1751202038847,6e-08,108240.0,108230.0,1.58888994]
[1751202039045,6e-08,108240.0,108230.0,2.27308994]
[1751202042348,0.0651,108250.0,108240.0,0.1847136]
[1751202042549,0.0651,108250.0,108240.0,0.68887249]
[1751202042743,0.0651,108250.0,108240.0,1.37303249]
[1751202043043,0.0651,108250.0,108240.0,0.68887249]
[1751202043247,0.0651,108250.0,108240.0,0.55995181]
[1751202043444,0.0671,108250.0,108240.0,1.33619852]
[1751202044050,0.0691,108250.0,108240.0,1.33619852]
[1751202045345,0.0691,108250.0,108240.0,1.33627852]
[1751202047254,0.0691,108250.0,108240.0,1.24419181]
[1751202048253,0.0691,108250.0,108240.0,1.33641806]
[1751202049443,0.0691,108250.0,108240.0,1.24419181]
[1751202052350,0.0691,108250.0,108240.0,1.24427181]
[1751202055358,0.0691,108250.0,108240.0,1.33650783]
[1751202059163,0.004,108250.0,108240.0,1.33650783]
[1751202059364,0.004,108250.0,108240.0,1.34057181]
[1751202060066,0.004,108250.0,108240.0,0.65625181]
[1751202060264,0.0668,108250.0,108240.0,1.34053181]
[1751202060459,0.0668,108250.0,108240.0,1.41431467]
[1751202061563,0.0668,108250.0,108240.0,1.34053181]
[1751202062364,0.0668,108250.0,108240.0,1.41430595]
[1751202062863,0.0668,108250.0,108240.0,1.34053181]
[1751202063267,0.0668,108250.0,108240.0,1.43276783]
[1751202064359,0.0668,108250.0,108240.0,1.34053181]
[1751202064566,0.0668,108250.0,108240.0,1.46945249]
[1751202066563,0.0668,108250.0,108240.0,1.34053181]
[1751202066764,0.0668,108250.0,108240.0,1.27693181]
[1751202067364,0.0668,108250.0,108240.0,0.72157249]
[1751202067565,0.0668,108250.0,108240.0,1.40613249]
[1751202067764,0.0668,108250.0,108240.0,0.32807249]
[1751202067966,0.0668,108250.0,108240.0,1.08642749]
[1751202068167,0.0668,108250.0,108240.0,0.95750681]
[1751202072676,0.0668,108250.0,108240.0,0.95756045]
[1751202072871,0.0668,108250.0,108240.0,0.40048045]
[1751202073072,0.0668,108250.0,108240.0,0.88371181]
[1751202073669,0.0668,108250.0,108240.0,0.97595556]
[1751202075273,0.0969,108250.0,108240.0,0.97595556]
[1751202084972,0.0969,108250.0,108240.0,0.29139556]
[1751202085178,0.0969,108250.0,108240.0,0.97627556]
[1751202085378,0.0969,108250.0,108240.0,0.19915181]
[1751202085578,0.0969,108250.0,108240.0,0.32683181]
[1751202085785,0.0969,108250.0,108240.0,0.88399181]
[1751202086885,0.0969,108250.0,108240.0,0.19915181]
[1751202087086,0.0969,108250.0,108240.0,0.88399181]
[1751202087786,0.0969,108250.0,108240.0,0.95785146]
[1751202092391,0.0969,108250.0,108240.0,0.88399181]
[1751202094593,0.0969,108250.0,108240.0,0.19915181]
[1751202094786,0.0969,108250.0,108240.0,0.88383181]
[1751202094982,0.0969,108250.0,108240.0,0.97607556]
[1751202095382,0.0969,108250.0,108240.0,1.00697556]
[1751202095987,0.066,108250.0,108240.0,1.00697556]
[1751202096186,0.066,108250.0,108240.0,1.06967556]
[1751202096386,0.0359,108250.0,108240.0,1.06967556]
[1751202096589,0.0359,108250.0,108240.0,0.38499556]
[1751202096789,0.0359,108250.0,108240.0,1.06967556]
[1751202097195,0.0359,108250.0,108240.0,1.06971556]
[1751202097396,0.004,108250.0,108240.0,1.06971556]
[1751202098197,0.004,108250.0,108240.0,1.43051556]
[1751202099498,0.004,108250.0,108240.0,1.33827181]
[1751202099699,0.004,108250.0,108240.0,1.46719249]
[1751202112405,0.004,108250.0,108240.0,1.33827181]
[1751202113007,0.004,108250.0,108240.0,1.43054614]
[1751202113907,0.004,108250.0,108240.0,1.33827181]
[1751202114106,0.004,108250.0,108240.0,1.46719249]
[1751202118514,0.004,108250.0,108240.0,1.4671892]
[1751202126214,0.004,108250.0,108240.0,1.8279892]
[1751202127016,0.004,108250.0,108240.0,1.92028183]
[1751202127211,0.004,108250.0,108240.0,1.79136115]
[1751202128511,0.004,108250.0,108240.0,1.8279892]
[1751202128716,0.004,108250.0,108240.0,2.6261892]
[1751202131520,0.004,108250.0,108240.0,2.61175428]
[1751202134825,0.004,108250.0,108240.0,2.71175428]
[1751202136419,0.002,108250.0,108240.0,2.71175428]
[1751202136626,0.003,108250.0,108240.0,2.71175428]
[1751202138227,0.001,108250.0,108240.0,2.5828336]
[1751202139326,0.001,108250.0,108240.0,2.59726824]
[1751202140929,0.06517416,108260.0,108250.0,0.1846965]
[1751202141116,0.06517416,108260.0,108250.0,1.02406645]
[1751202142129,0.06517416,108260.0,108250.0,1.03338855]
[1751202142327,0.06717416,108260.0,108250.0,1.03338855]
[1751202142529,0.06917416,108260.0,108250.0,1.03338855]
[1751202147132,0.06917416,108260.0,108250.0,0.90414861]
[1751202147831,0.06917416,108260.0,108250.0,1.03338855]
[1751202149431,0.06917416,108260.0,108250.0,0.90414861]
[1751202150934,0.06917416,108260.0,108250.0,1.03338855]
[1751202151926,0.06917416,108260.0,108250.0,0.67258855]
[1751202152126,0.06917416,108260.0,108250.0,1.39418855]
[1751202152534,0.06917416,108260.0,108250.0,1.92040855]
[1751202154737,0.06917416,108260.0,108250.0,2.01266586]
[1751202155033,0.06917416,108260.0,108250.0,1.88342592]
[1751202155236,0.06917416,108260.0,108250.0,1.86899128]
[1751202157536,0.06917416,108260.0,108250.0,1.88335337]
[1751202160038,0.06917416,108260.0,108250.0,1.79109606]
[1751202160226,0.06917416,108260.0,108250.0,1.920336]
[1751202163237,0.06917416,108260.0,108250.0,1.198736]
[1751202163432,0.06917416,108260.0,108250.0,2.048096]
[1751202166852,0.06917416,108260.0,108250.0,2.081196]
[1751202169552,0.06917416,108260.0,108250.0,2.06683391]
[1751202170254,0.06917416,108260.0,108250.0,1.38155391]
[1751202170554,0.06917416,108260.0,108250.0,2.06679391]
[1751202176056,0.06917416,108260.0,108250.0,2.15916724]
[1751202176355,0.06917416,108260.0,108250.0,2.02992126]
[1751202179863,0.06917416,108260.0,108250.0,2.1591612]
[1751202180063,0.06917416,108260.0,108250.0,2.06679391]
[1751202181566,0.06917416,108260.0,108250.0,2.09789391]
[1751202183659,0.06917416,108260.0,108250.0,1.41265391]
[1751202183863,0.06917416,108260.0,108250.0,2.03345391]
[1751202189971,0.06917416,108260.0,108250.0,2.06535391]
[1751202191767,0.06917416,108260.0,108250.0,2.11154391]
[1751202192763,0.06917416,108260.0,108250.0,1.98230397]
[1751202195665,0.03767416,108260.0,108250.0,2.04290397]
[1751202199071,0.00657416,108260.0,108250.0,2.04290397]
[1751202203576,0.0964,108270.0,108260.0,0.1846793]
[1751202203770,0.0964,108270.0,108260.0,0.70796547]
[1751202204778,0.0994,108270.0,108260.0,0.70796547]
[1751202204982,0.1024,108270.0,108260.0,0.70796547]
[1751202206883,0.1024,108270.0,108260.0,0.83580547]
[1751202208183,0.1024,108270.0,108260.0,1.19660547]
[1751202208781,0.1024,108270.0,108260.0,1.75416547]
[1751202211882,0.1024,108270.0,108260.0,1.72096547]
[1751202212581,0.1024,108270.0,108260.0,1.68401793]
[1751202213886,0.1024,108270.0,108260.0,1.68441793]
[1751202217588,0.1024,108270.0,108260.0,0.96281793]
[1751202217883,0.1024,108270.0,108260.0,1.68441793]
[1751202219685,0.1024,108270.0,108260.0,1.6987877]
[1751202222388,0.1024,108270.0,108260.0,1.60644907]
[1751202222684,0.1024,108270.0,108260.0,1.73573524]
[1751202225888,0.1024,108270.0,108260.0,1.04993524]
[1751202226190,0.1024,108270.0,108260.0,1.73541524]
[1751202228093,0.1024,108270.0,108260.0,1.60612907]
[1751202228588,0.1024,108270.0,108260.0,1.63912907]
[1751202231886,0.1024,108270.0,108260.0,1.73146169]
[1751202233290,0.1024,108270.0,108260.0,1.63912907]
[1751202233690,0.1024,108270.0,108260.0,1.76841524]
[1751202234892,0.1024,108270.0,108260.0,1.40761524]
[1751202236892,0.1024,108270.0,108260.0,1.39324547]
[1751202239887,0.0713,108270.0,108260.0,1.39324547]
[1751202240093,0.0713,108270.0,108260.0,1.33782134]
[1751202241900,0.0713,108270.0,108260.0,1.36872134]
[1751202245105,0.0713,108270.0,108260.0,0.68324134]
[1751202245297,0.0713,108270.0,108260.0,1.36888134]
[1751202245497,0.0713,108270.0,108260.0,1.42430547]
[1751202248405,0.0713,108270.0,108260.0,1.47049547]
[1751202251210,0.0713,108270.0,108260.0,1.50229547]
[1751202252412,0.0713,108270.0,108260.0,1.59461916]
[1751202252705,0.0713,108270.0,108260.0,1.46533299]
[1751202256310,0.006,108270.0,108260.0,1.46533299]
[1751202256504,0.006,108270.0,108260.0,1.3730093]
[1751202258214,0.003,108270.0,108260.0,1.3730093]
[1751202258512,0.004,108270.0,108260.0,1.3730093]
[1751202258713,0.002,108270.0,108260.0,1.3730093]
[1751202262414,0.002,108270.0,108260.0,1.48207179]
[1751202270618,0.002,108270.0,108260.0,1.55596787]
[1751202270814,0.002,108270.0,108260.0,1.46362456]
[1751202271316,0.002,108270.0,108260.0,1.38972848]
[1751202272320,0.001,108270.0,108260.0,1.38972848]
[1751202272623,0.001,108270.0,108260.0,1.46462456]
[1751202272822,0.001,108270.0,108260.0,1.39072848]
[1751202273015,0.001,108270.0,108260.0,1.48307179]
[1751202273922,0.09437416,108280.0,108270.0,0.184664]
[1751202274118,0.09437416,108280.0,108270.0,0.61933066]
[1751202275226,0.09637416,108280.0,108270.0,0.69208235]
[1751202276227,0.09637416,108280.0,108270.0,0.710559]
[1751202279226,0.09637416,108280.0,108270.0,0.742959]
[1751202282023,0.09637416,108280.0,108270.0,0.382159]
[1751202282223,0.09637416,108280.0,108270.0,0.742959]
[1751202290032,0.09637416,108280.0,108270.0,0.382159]
[1751202290232,0.09637416,108280.0,108270.0,0.72446772]
[1751202292927,0.09637416,108280.0,108270.0,0.65061569]
[1751202296236,0.09637416,108280.0,108270.0,0.77857569]
[1751202296422,0.09637416,108280.0,108270.0,0.870919]
[1751202299533,0.08655628,108280.0,108270.0,0.77857569]
[1751202299835,0.08655628,108280.0,108270.0,0.81117569]
[1751202300037,0.08655628,108280.0,108270.0,0.84247569]
[1751202301034,0.05575628,108280.0,108270.0,0.84247569]
[1751202304734,0.03437416,108280.0,108270.0,0.84247569]
[1751202304935,0.03437416,108280.0,108270.0,0.934819]
[1751202306331,0.03437416,108280.0,108270.0,0.94925175]
[1751202308340,0.03437416,108280.0,108270.0,0.85690844]
[1751202308638,0.03437416,108280.0,108270.0,0.93080415]
[1751202310241,0.03437416,108280.0,108270.0,0.85690844]
[1751202312044,0.03437416,108280.0,108270.0,0.93080415]
[1751202312543,0.03437416,108280.0,108270.0,0.57000415]
[1751202312741,0.03437416,108280.0,108270.0,0.80284415]
[1751202313044,0.42697416,108280.0,108270.0,1.03038415]
[1751202313244,0.64248617,108280.0,108270.0,0.34574415]
[1751202313444,0.82713307,108280.0,108270.0,0.34574415]
[1751202313640,0.82713307,108280.0,108270.0,0.90282415]
[1751202313844,1.07713307,108280.0,108270.0,0.16108015]
[1751202314044,0.1846639,108270.0,108260.0,0.2770302]
[1751202314341,0.6068639,108270.0,108260.0,0.2770302]
[1751202314645,0.7915919,108270.0,108260.0,0.2770302]
[1751202316442,0.7915919,108270.0,108260.0,0.2780302]
[1751202316640,0.7915919,108270.0,108260.0,0.33439682]
[1751202317243,0.8135227,108270.0,108260.0,0.2790302]
[1751202320145,0.7915919,108270.0,108260.0,0.2790302]
[1751202323652,0.6068639,108270.0,108260.0,0.2790302]
[1751202329651,0.7915919,108270.0,108260.0,0.04819]
[1751202329855,1.4766719,108270.0,108260.0,0.04819]
[1751202330058,1.9700719,108270.0,108260.0,0.04819]
[1751202330861,1.9700719,108270.0,108260.0,0.232871]
[1751202331461,1.99188202,108270.0,108260.0,0.232871]
[1751202331654,1.99179837,108270.0,108260.0,0.232871]
[1751202336164,1.99179837,108270.0,108260.0,0.04819]
[1751202336357,1.99179837,108270.0,108260.0,0.232871]
[1751202336564,1.99179837,108270.0,108260.0,0.24730861]
[1751202340658,1.99179837,108270.0,108260.0,0.232871]
[1751202340860,2.02289837,108270.0,108260.0,0.232871]
[1751202343669,1.66209837,108270.0,108260.0,0.232871]
[1751202343870,2.38369837,108270.0,108260.0,0.232871]
[1751202344471,2.38369837,108270.0,108260.0,0.24730906]
[1751202347874,2.19897037,108270.0,108260.0,0.24730906]
[1751202352575,2.19897037,108270.0,108260.0,0.27930906]
[1751202355673,2.16845037,108270.0,108260.0,0.27930906]
[1751202355977,2.10671037,108270.0,108260.0,0.34370906]
[1751202356772,1.42139037,108270.0,108260.0,0.34370906]
[1751202356970,1.97911037,108270.0,108260.0,0.34370906]
[1751202364279,1.42139037,108270.0,108260.0,0.34370906]
[1751202364486,2.92139047,108270.0,108260.0,0.34370906]
[1751202369685,2.95139047,108270.0,108260.0,0.34370906]
[1751202370382,2.98449047,108270.0,108260.0,0.34370906]
[1751202372289,2.98449047,108270.0,108260.0,0.31160906]
[1751202374187,2.62369047,108270.0,108260.0,0.31160906]
[1751202374892,2.65649047,108270.0,108260.0,0.31160906]
[1751202376090,2.65649047,108270.0,108260.0,0.27930906]
[1751202383187,2.65649047,108270.0,108260.0,0.24730906]
[1751202415819,2.65649047,108270.0,108260.0,0.06262806]
[1751202416019,2.65649047,108270.0,108260.0,0.24730906]
[1751202417621,2.65649047,108270.0,108260.0,0.06262806]
[1751202417918,2.65649047,108270.0,108260.0,0.24730906]
[1751202425526,2.65649047,108270.0,108260.0,0.24730865]
[1751202434740,3.21377047,108270.0,108260.0,0.24730865]
[1751202439338,3.57457047,108270.0,108260.0,0.24730865]
[1751202441142,3.57457047,108270.0,108260.0,0.06262765]
[1751202441644,3.57457047,108270.0,108260.0,0.24730865]
[1751202442143,3.57457047,108270.0,108260.0,0.06262765]
[1751202444546,3.552844,108270.0,108260.0,0.06262765]
[1751202447945,0.184681,108260.0,108250.0,0.2308625]
[1751202448143,1.288508,108260.0,108250.0,0.19913631]
[1751202448343,1.3808558,108260.0,108250.0,0.19913631]
[1751202448942,1.3808558,108260.0,108250.0,0.01443821]
[1751202449147,1.39008462,108260.0,108250.0,0.01943821]
[1751202453750,1.75088462,108260.0,108250.0,0.01943821]
[1751202458355,1.87860462,108260.0,108250.0,0.01943821]
[1751202467570,1.87860462,108260.0,108250.0,0.20413631]
[1751202468272,1.87860462,108260.0,108250.0,0.01943821]
[1751202468673,1.87860462,108260.0,108250.0,0.20413631]
[1751202468971,1.87860462,108260.0,108250.0,0.01943821]
[1751202469569,1.87860462,108260.0,108250.0,0.005]
[1751202471272,1.87860462,108260.0,108250.0,0.01943926]
[1751202485287,0.1846981,108250.0,108240.0,0.2481142]
[1751202485484,0.1847151,108240.0,108230.0,0.3094871]
[1751202485789,1.1035551,108240.0,108230.0,0.3710871]
[1751202486089,1.1348551,108240.0,108230.0,0.3710871]
[1751202486290,1.1348551,108240.0,108230.0,0.3249049]
[1751202486491,1.1348551,108240.0,108230.0,0.2787227]
[1751202487193,1.1348551,108240.0,108230.0,0.2797227]
[1751202488191,0.7740551,108240.0,108230.0,0.2797227]
[1751202488492,1.4956551,108240.0,108230.0,0.2797227]
[1751202489386,1.5285551,108240.0,108230.0,0.2797227]
[1751202490294,1.5295551,108240.0,108230.0,0.2827227]
[1751202491795,1.5295551,108240.0,108230.0,0.0656]
[1751202492088,1.6891551,108240.0,108230.0,0.001]
[1751202492690,0.1847322,108230.0,108220.0,0.000924]
[1751202492890,0.6428322,108230.0,108220.0,0.000924]
[1751202493488,2.1428322,108230.0,108220.0,0.000924]
[1751202494590,2.1428322,108230.0,108220.0,0.002924]
[1751202494992,2.1428322,108230.0,108220.0,0.004924]
[1751202495192,2.16440789,108230.0,108220.0,0.004924]
[1751202495394,2.1428322,108230.0,108220.0,0.004924]
[1751202495588,2.16433097,108230.0,108220.0,0.004924]
[1751202497396,2.16433097,108230.0,108220.0,0.01892651]
[1751202500605,0.1847663,108210.0,108200.0,0.13739064]
[1751202500795,1.4644463,108210.0,108200.0,0.16587786]
[1751202500997,1.55145339,108210.0,108200.0,0.13387786]
[1751202501197,1.5301463,108210.0,108200.0,0.13387803]
[1751202501495,1.5301463,108210.0,108200.0,0.06158739]
[1751202501691,1.55144785,108210.0,108200.0,0.06158739]
[1751202502101,1.55244785,108210.0,108200.0,0.06758739]
[1751202502303,1.5311463,108210.0,108200.0,0.05314306]
[1751202502501,1.5321463,108210.0,108200.0,0.05714306]
[1751202503101,1.5321463,108210.0,108200.0,0.24192646]
[1751202503804,1.55340689,108210.0,108200.0,0.27412646]
[1751202504207,1.55340689,108210.0,108200.0,0.28857131]
[1751202504504,1.55340689,108210.0,108200.0,0.27412646]
[1751202504807,1.55340689,108210.0,108200.0,0.28857131]
[1751202505304,1.55340181,108210.0,108200.0,0.27412646]
[1751202505507,1.56254993,108210.0,108200.0,0.27412646]
[1751202506108,1.56254872,108210.0,108200.0,0.27412646]
[1751202506306,1.56254683,108210.0,108200.0,0.27412646]
[1751202506905,1.56254683,108210.0,108200.0,0.28857155]
[1751202507709,1.56254683,108210.0,108200.0,0.36111722]
[1751202508510,1.56254683,108210.0,108200.0,0.36111726]
[1751202509011,1.56254683,108210.0,108200.0,0.34667213]
[1751202509410,1.54129442,108210.0,108200.0,0.34667213]
[1751202509908,1.5625403,108210.0,108200.0,0.34667213]
[1751202511314,1.5625403,108210.0,108200.0,0.36111727]
[1751202511910,1.54129442,108210.0,108200.0,0.36111727]
[1751202512806,1.56254092,108210.0,108200.0,0.36111727]
[1751202513311,1.56254223,108210.0,108200.0,0.36111727]
[1751202513513,1.54129442,108210.0,108200.0,0.36111727]
[1751202515016,0.98321442,108210.0,108200.0,0.36111727]
[1751202515209,1.69119315,108210.0,108200.0,0.36111727]
[1751202515714,1.69115315,108210.0,108200.0,0.36111727]
[1751202516714,1.66989442,108210.0,108200.0,0.36111727]
[1751202517013,1.69115702,108210.0,108200.0,0.36111727]
[1751202518721,1.66989442,108210.0,108200.0,0.36111727]
[1751202519017,1.69116912,108210.0,108200.0,0.36111727]
[1751202519409,1.66989442,108210.0,108200.0,0.36111727]
[1751202520318,1.69118161,108210.0,108200.0,0.36111727]
[1751202521012,1.4668463,108210.0,108200.0,0.36111727]
[1751202521214,1.4668463,108210.0,108200.0,0.39401727]
[1751202521414,1.4668463,108210.0,108200.0,0.44936574]
[1751202522320,1.48814396,108210.0,108200.0,0.44936574]
[1751202522615,1.48814396,108210.0,108200.0,0.39401727]
[1751202525125,1.52114396,108210.0,108200.0,0.39401727]
[1751202525418,1.53039332,108210.0,108200.0,0.39401727]
[1751202526318,1.52114396,108210.0,108200.0,0.39401727]
[1751202529125,1.48842396,108210.0,108200.0,0.39401727]
[1751202529822,1.48842396,108210.0,108200.0,0.40321283]
[1751202530024,1.48842396,108210.0,108200.0,0.39401727]
[1751202530224,1.48842396,108210.0,108200.0,0.39401672]
[1751202533920,1.48842396,108210.0,108200.0,0.40332945]
[1751202535129,1.48842396,108210.0,108200.0,0.39401672]
[1751202535426,1.4671263,108210.0,108200.0,0.39401672]
[1751202536629,0.7455263,108210.0,108200.0,0.39401672]
[1751202536830,1.1063263,108210.0,108200.0,0.39401672]
[1751202538328,0.7455263,108210.0,108200.0,0.39401672]
[1751202538529,1.1061263,108210.0,108200.0,0.37997366]
[1751202540627,1.1371263,108210.0,108200.0,0.37997366]
[1751202541030,1.15929445,108210.0,108200.0,0.37997366]
[1751202541332,1.18969445,108210.0,108200.0,0.29579739]
[1751202541527,1.22229445,108210.0,108200.0,0.29579739]
[1751202546328,1.22229445,108210.0,108200.0,0.29580099]
[1751202546530,1.22229445,108210.0,108200.0,0.29580121]
[1751202546731,1.22229445,108210.0,108200.0,0.28135784]
[1751202546921,0.66373445,108210.0,108200.0,0.28135784]
[1751202547121,1.22205445,108210.0,108200.0,0.29580216]
[1751202548328,1.1998863,108210.0,108200.0,0.29580216]
[1751202549826,1.1998863,108210.0,108200.0,0.36969354]
[1751202551033,0.8390863,108210.0,108200.0,0.36969354]
[1751202551226,1.1998863,108210.0,108200.0,0.36969354]
[1751202556240,1.22210898,108210.0,108200.0,0.29580216]
[1751202558230,1.22198898,108210.0,108200.0,0.29580216]
[1751202560028,0.66378898,108210.0,108200.0,0.29580216]
[1751202560234,1.15903008,108210.0,108200.0,0.28177339]
[1751202560430,0.38502268,108210.0,108200.0,0.37797339]
[1751202560632,0.94326268,108210.0,108200.0,0.37797339]
[1751202561238,0.38502268,108210.0,108200.0,0.37797339]
[1751202561439,0.94338268,108210.0,108200.0,0.37797339]
[1751202563334,1.12815008,108210.0,108200.0,0.37797339]
[1751202564839,0.63319008,108210.0,108200.0,0.37797339]
[1751202569242,0.6109674,108210.0,108200.0,0.37797339]
[1751202573740,0.6109674,108210.0,108200.0,0.45186477]
[1751202581847,0.6109674,108210.0,108200.0,0.37797339]
[1751202583246,0.6109674,108210.0,108200.0,0.31427339]
[1751202583447,0.6432674,108210.0,108200.0,0.31427339]
[1751202588352,0.6432674,108210.0,108200.0,0.38816477]
[1751202594957,0.2824674,108210.0,108200.0,0.38816477]
[1751202595252,0.6432674,108210.0,108200.0,0.38816477]
[1751202596059,0.2824674,108210.0,108200.0,0.38816477]
[1751202596256,0.6432674,108210.0,108200.0,0.38816477]
[1751202599763,0.48074763,108210.0,108200.0,0.31427339]
[1751202600558,0.66551493,108210.0,108200.0,0.31427339]
[1751202601564,0.48074763,108210.0,108200.0,0.31427339]
[1751202604666,0.4585,108210.0,108200.0,0.38816477]
[1751202608072,0.6432674,108210.0,108200.0,0.38816477]
[1751202616382,0.66546928,108210.0,108200.0,0.31427339]
[1751202623984,0.66546928,108210.0,108200.0,0.29982907]
[1751202633804,0.48070188,108210.0,108200.0,0.29982907]
[1751202633998,0.66546928,108210.0,108200.0,0.29982907]
[1751202635097,0.66546928,108210.0,108200.0,0.08254567]
[1751202635403,0.1847845,108200.0,108190.0,0.23192416]
[1751202635700,0.59848638,108200.0,108190.0,0.2460761]
[1751202637607,0.59848638,108200.0,108190.0,0.31921965]
[1751202637801,0.59948638,108200.0,108190.0,0.32121965]
[1751202638002,0.59948638,108200.0,108190.0,0.33566564]
[1751202638508,0.5782845,108200.0,108190.0,0.33866564]
[1751202638699,0.5782845,108200.0,108190.0,0.37086564]
[1751202639006,0.6101845,108200.0,108190.0,0.37086564]
[1751202639801,0.5794845,108200.0,108190.0,0.37086564]
[1751202640107,0.002,108200.0,108190.0,0.47625702]
[1751202640607,0.002,108200.0,108190.0,0.46210508]
[1751202642005,0.002,108200.0,108190.0,0.49460035]
[1751202643902,0.002,108200.0,108190.0,0.56843816]
[1751202644103,0.002,108200.0,108190.0,0.47607393]
[1751202645003,0.002,108200.0,108190.0,0.46205151]
[1751202648007,0.002,108200.0,108190.0,0.7490137]
[1751202648207,0.264041,108220.0,108200.0,0.0461948]
[1751202648410,0.3608,108210.0,108200.0,0.23187626]
[1751202648710,0.3608,108210.0,108200.0,0.50904876]
[1751202649010,0.3608,108210.0,108200.0,0.55524356]
[1751202649613,0.457,108220.0,108210.0,0.1847674]
[1751202650108,0.459,108220.0,108210.0,0.1847674]
[1751202650812,0.6437503,108220.0,108210.0,0.19393071]
[1751202651010,0.6467503,108220.0,108210.0,0.19493071]
[1751202651211,0.462,108220.0,108210.0,0.19493071]
[1751202651514,0.3658,108220.0,108210.0,0.28320921]
[1751202651809,0.3658,108220.0,108210.0,0.34540921]
[1751202654017,0.3658,108220.0,108210.0,0.3362459]
[1751202654318,0.3658,108220.0,108210.0,0.8944859]
[1751202654509,0.4601,108220.0,108210.0,0.8944859]
[1751202656016,0.4275,108220.0,108210.0,0.8944859]
[1751202659528,0.4275,108220.0,108210.0,0.88004287]
[1751202661834,0.4275,108220.0,108210.0,0.8944847]
[1751202669536,0.4596,108220.0,108210.0,0.8944847]
[1751202676344,0.4596,108220.0,108210.0,0.82064923]
[1751202679445,0.48187697,108220.0,108210.0,0.82064923]
[1751202681343,0.48187697,108220.0,108210.0,0.94904923]
[1751202685649,0.12107697,108220.0,108210.0,0.94904923]
[1751202685947,0.48187697,108220.0,108210.0,0.94904923]
[1751202686141,0.48187697,108220.0,108210.0,0.82064923]
[1751202687750,0.48187697,108220.0,108210.0,0.75844923]
[1751202688349,0.4596,108220.0,108210.0,0.75844923]
[1751202689251,0.4596,108220.0,108210.0,0.8322847]
[1751202694350,0.4596,108220.0,108210.0,0.8323647]
[1751202702257,0.0988,108220.0,108210.0,0.8323647]
[1751202703060,0.0988,108220.0,108210.0,0.8625647]
[1751202706654,0.4596,108220.0,108210.0,0.8625647]
[1751202711966,0.4596,108220.0,108210.0,0.86256445]
[1751202713267,0.0988,108220.0,108210.0,0.86256445]
[1751202713470,0.4596,108220.0,108210.0,0.86256445]
[1751202715279,0.4596,108220.0,108210.0,0.89276445]
[1751202715764,0.4275,108220.0,108210.0,0.89276445]
[1751202724274,0.0667,108220.0,108210.0,0.89276445]
[1751202724475,0.4275,108220.0,108210.0,0.89276445]
[1751202730886,0.4275,108220.0,108210.0,0.81892898]
[1751202732586,0.6122503,108220.0,108210.0,0.78872898]
[1751202732793,0.63450374,108220.0,108210.0,0.75852898]
[1751202732984,0.66730374,108220.0,108210.0,0.75852898]
[1751202734892,0.6450503,108220.0,108210.0,0.86416445]
[1751202735888,0.6450503,108220.0,108210.0,0.83236445]
[1751202736288,0.6450503,108220.0,108210.0,0.75852898]
[1751202739698,1.02796378,108220.0,108210.0,0.20020898]
[1751202742499,1.03720995,108220.0,108210.0,0.20020898]
[1751202743595,1.70081647,108220.0,108210.0,0.01544158]
[1751202744198,1.70081647,108220.0,108210.0,0.20020898]
[1751202744386,1.72290579,108220.0,108210.0,0.20020898]
[1751202744587,1.90772179,108220.0,108210.0,0.20020898]
[1751202745195,1.88563247,108220.0,108210.0,0.20020898]
[1751202745887,1.90771855,108220.0,108210.0,0.20020898]
[1751202746386,1.90771855,108220.0,108210.0,0.01544158]
[1751202747496,0.1847674,108210.0,108200.0,0.2309679]
[1751202747696,0.66315348,108210.0,108200.0,0.2309679]
[1751202747896,0.66315348,108210.0,108200.0,0.24500456]
[1751202748097,0.6410674,108210.0,108200.0,0.24500456]
[1751202749101,0.6410674,108210.0,108200.0,0.24600456]
[1751202752401,0.6410674,108210.0,108200.0,0.24598882]
[1751202752904,0.6430674,108210.0,108200.0,0.24698882]
[1751202753101,0.6430674,108210.0,108200.0,0.01602092]
[1751202753303,0.8278994,108210.0,108200.0,0.01602092]
[1751202754000,0.84992346,108210.0,108200.0,0.01602092]
[1751202754603,0.66509146,108210.0,108200.0,0.01602092]
[1751202754805,0.84992346,108210.0,108200.0,0.01602092]
[1751202755207,1.09992346,108210.0,108200.0,0.01602092]
[1751202755711,1.17388852,108210.0,108200.0,0.01602092]
[1751202759210,0.92388852,108210.0,108200.0,0.002]
[1751202762813,0.66509146,108210.0,108200.0,0.1867845]
[1751202763010,0.7386874,108210.0,108200.0,0.1867845]
[1751202763313,1.2968474,108210.0,108200.0,0.26547696]